bitfinex-derivatives/quotes_BNBF0:USTF0_20260114
["timestamp","ask_amount","ask_price","bid_price","bid_amount"]
[1768387677217,0.76338201,936.76,935.2,0.1857724]
[1768387677412,0.76338201,936.75,935.2,0.1857724]
[1768387677616,0.76338201,936.74,935.2,0.1857724]
[1768387677816,0.76338201,936.73,935.2,0.1857724]
[1768387678012,0.76338201,936.72,935.2,0.1857724]
[1768387678312,0.76338201,936.71,935.2,0.1857724]
[1768387678517,0.76338201,936.7,935.2,0.1857724]
[1768387678719,0.76338201,936.69,935.2,0.1857724]
[1768387678920,0.76338201,936.68,935.2,0.1857724]
[1768387679117,0.76338201,936.67,935.2,0.1857724]
[1768387679318,0.76338201,936.66,935.2,0.1857724]
[1768387679520,0.76338201,936.65,935.2,0.1857724]
[1768387679818,0.76338201,936.64,935.2,0.1857724]
[1768387680017,0.76338201,936.63,935.2,0.1857724]
[1768387680218,0.76338201,936.62,935.2,0.1857724]
[1768387680417,0.76338201,936.61,935.2,0.1857724]
[1768387680622,0.76338201,936.6,935.2,0.1857724]
[1768387680823,0.76338201,936.59,935.2,0.1857724]
[1768387681023,0.76338201,936.58,935.2,0.1857724]
[1768387681324,0.76338201,936.57,935.2,0.1857724]
[1768387681625,0.76338201,936.56,935.2,0.1857724]
[1768387681820,0.76338201,936.55,935.2,0.1857724]
[1768387682019,0.76338201,936.54,935.2,0.1857724]
[1768387682220,0.76338201,936.53,935.2,0.1857724]
[1768387682420,0.76338201,936.52,935.2,0.1857724]
[1768387682620,0.76338201,936.51,935.2,0.1857724]
[1768387682820,0.76338201,936.5,935.2,0.1857724]
[1768387683019,0.76338201,936.49,935.2,0.1857724]
[1768387683220,1.637,936.57,935.2,0.1857724]
[1768387683221,0.76338201,936.48,935.2,0.1857724]
[1768387683422,0.76338201,936.47,935.2,0.1857724]
[1768387683623,0.76338201,936.46,935.2,0.1857724]
[1768387683924,0.76338201,936.45,935.2,0.1857724]
[1768387684220,0.76338201,936.44,935.2,0.1857724]
[1768387684424,0.76338201,936.43,935.2,0.1857724]
[1768387684621,0.76338201,936.42,935.2,0.1857724]
[1768387684824,0.76338201,936.41,935.2,0.1857724]
[1768387685021,1.637,936.57,935.2,0.1857724]
[1768387685226,0.76235652,936.56,935.2,0.1857724]
[1768387685422,0.76235652,936.55,935.2,0.1857724]
[1768387685622,0.76235652,936.54,935.2,0.1857724]
[1768387685826,0.76235652,936.53,935.2,0.1857724]
[1768387686026,0.76235652,936.52,935.2,0.1857724]
[1768387686226,0.76235652,936.51,935.2,0.1857724]
[1768387686426,0.76235652,936.5,935.2,0.1857724]
[1768387686624,0.76235652,936.49,935.2,0.1857724]
[1768387686824,0.76235652,936.48,935.2,0.1857724]
[1768387687028,0.76235652,936.47,935.2,0.1857724]
[1768387687228,1.637,936.57,935.2,0.1857724]
[1768387687229,0.76235652,936.46,935.2,0.1857724]
[1768387687425,0.76235652,936.45,935.2,0.1857724]
[1768387687727,0.76235652,936.44,935.2,0.1857724]
[1768387687928,0.76235652,936.43,935.2,0.1857724]
[1768387688124,0.76235652,936.42,935.2,0.1857724]
[1768387688327,0.76235652,936.41,935.2,0.1857724]
[1768387688524,1.637,936.57,935.2,0.1857724]
[1768387688728,0.76232292,936.56,935.2,0.1857724]
[1768387688930,0.76232292,936.55,935.2,0.1857724]
[1768387689231,0.76232292,936.54,935.2,0.1857724]
[1768387689429,0.76232292,936.53,935.2,0.1857724]
[1768387689625,0.76232292,936.52,935.2,0.1857724]
[1768387689828,0.76232292,936.51,935.2,0.1857724]
[1768387690026,0.76232292,936.5,935.2,0.1857724]
[1768387690326,0.76232292,936.49,935.2,0.1857724]
[1768387690529,0.76232292,936.48,935.2,0.1857724]
[1768387690724,0.76232292,936.47,935.2,0.1857724]
[1768387690925,0.76232292,936.46,935.2,0.1857724]
[1768387691126,0.76232292,936.45,935.2,0.1857724]
[1768387691328,0.76232292,936.44,935.2,0.1857724]
[1768387691528,0.76232292,936.43,935.2,0.1857724]
[1768387691729,0.76232292,936.42,935.2,0.1857724]
[1768387691928,0.76232292,936.41,935.2,0.1857724]
[1768387692129,1.637,936.57,935.2,0.1857724]
[1768387692326,0.76242075,936.56,935.2,0.1857724]
[1768387692625,0.76242075,936.55,935.2,0.1857724]
[1768387692830,0.76242075,936.54,935.2,0.1857724]
[1768387693128,0.76242075,936.53,935.2,0.1857724]
[1768387693329,0.76242075,936.52,935.2,0.1857724]
[1768387693528,0.76242075,936.51,935.2,0.1857724]
[1768387693732,0.76242075,936.5,935.2,0.1857724]
[1768387693928,0.76242075,936.49,935.2,0.1857724]
[1768387694127,0.76242075,936.48,935.2,0.1857724]
[1768387694427,0.76242075,936.47,935.2,0.1857724]
[1768387694729,0.76242075,936.46,935.2,0.1857724]
[1768387694929,0.76242075,936.45,935.2,0.1857724]
[1768387695130,0.76242075,936.44,935.2,0.1857724]
[1768387695431,0.76242075,936.43,935.2,0.1857724]
[1768387695628,0.76242075,936.42,935.2,0.1857724]
[1768387695830,0.76242075,936.41,935.2,0.1857724]
[1768387696031,0.76242075,936.4,935.2,0.1857724]
[1768387696232,1.637,936.57,935.22,2.6562837]
[1768387696433,0.76260233,936.56,935.22,2.6562837]
[1768387696632,0.76260233,936.55,935.22,2.6562837]
[1768387696932,0.76260233,936.54,935.22,2.6562837]
[1768387697128,0.76260233,936.53,935.22,2.6562837]
[1768387697328,0.76260233,936.52,935.22,2.6562837]
[1768387697631,0.76260233,936.51,935.22,2.6562837]
[1768387697933,0.76260233,936.5,935.22,2.6562837]
[1768387698232,0.76260233,936.49,935.22,2.6562837]
[1768387698432,0.76260233,936.48,935.23,2.6562837]
[1768387698629,0.76260233,936.47,935.23,2.6562837]
[1768387698830,0.76260233,936.46,935.23,2.6562837]
[1768387699028,0.76260233,936.45,935.23,2.6562837]
[1768387699228,0.76260233,936.44,935.23,2.6562837]
[1768387699528,0.76260233,936.43,935.23,2.6562837]
[1768387699832,0.76260233,936.42,935.23,2.6562837]
[1768387700028,0.76260233,936.41,935.23,2.6562837]
[1768387700230,0.76260233,936.4,935.23,2.6562837]
[1768387700428,0.76260233,936.39,935.24,2.6562837]
[1768387700631,0.76260233,936.38,935.24,2.6562837]
[1768387700832,1.637,936.57,935.24,2.6562837]
[1768387701028,0.76293023,936.56,935.24,2.6562837]
[1768387701228,0.76293023,936.55,935.24,2.6562837]
[1768387701433,0.76293023,936.54,935.24,2.6562837]
[1768387701730,0.76293023,936.53,935.24,2.6562837]
[1768387702030,0.76293023,936.52,935.24,2.6562837]
[1768387702232,0.76293023,936.51,935.24,2.6562837]
[1768387702432,0.76293023,936.5,935.24,2.6562837]
[1768387702630,0.76293023,936.49,935.25,2.6562837]
[1768387702830,0.76293023,936.48,935.25,2.6562837]
[1768387703027,0.76293023,936.47,935.25,2.6562837]
[1768387703229,0.76293023,936.46,935.25,2.6562837]
[1768387703429,0.76293023,936.45,935.25,2.6562837]
[1768387703734,0.76293023,936.44,935.25,2.6562837]
[1768387704030,0.76293023,936.43,935.25,2.6562837]
[1768387704229,0.76293023,936.42,935.25,2.6562837]
[1768387704434,0.76293023,936.41,935.25,2.6562837]
[1768387704634,0.76293023,936.4,935.25,2.6562837]
[1768387704835,0.76293023,936.39,935.25,2.6562837]
[1768387705034,0.76293023,936.38,935.25,2.6562837]
[1768387705231,1.637,936.57,935.25,2.6562837]
[1768387705530,0.7630583,936.56,935.25,2.6562837]
[1768387705834,0.7630583,936.55,935.25,2.6562837]
[1768387706030,0.7630583,936.54,935.25,2.6562837]
[1768387706237,0.7630583,936.53,935.22,2.6562837]
[1768387706436,0.7630583,936.52,935.22,2.6562837]
[1768387706634,0.7630583,936.51,935.22,2.6562837]
[1768387706832,0.7630583,936.5,935.22,2.6562837]
[1768387707036,0.7630583,936.49,935.22,2.6562837]
[1768387707233,0.7630583,936.48,935.22,2.6562837]
[1768387707535,0.7630583,936.47,935.22,2.6562837]
[1768387707735,0.7630583,936.46,935.22,2.6562837]
[1768387707936,0.7630583,936.45,935.22,2.6562837]
[1768387708132,0.7630583,936.44,935.22,2.6562837]
[1768387708338,0.7630583,936.43,935.22,2.6562837]
[1768387708634,0.7630583,936.42,935.22,2.6562837]
[1768387708838,0.7630583,936.41,935.22,2.6562837]
[1768387709134,0.7630583,936.4,935.22,2.6562837]
[1768387709339,0.7630583,936.39,935.22,2.6562837]
[1768387709533,0.7630583,936.38,935.22,2.6562837]
[1768387709733,0.76305232,936.37,935.22,2.6562837]
[1768387709939,1.637,936.57,935.22,2.6562837]
[1768387710136,0.76305213,936.56,935.22,2.6562837]
[1768387710343,0.76305213,936.55,935.22,2.6562837]
[1768387710634,0.76305213,936.54,935.22,2.6562837]
[1768387710840,0.76305213,936.53,935.22,2.6562837]
[1768387711038,0.76305213,936.52,935.22,2.6562837]
[1768387711236,0.76305213,936.51,935.22,2.6562837]
[1768387711440,0.76305213,936.5,935.22,2.6562837]
[1768387711637,0.76305213,936.49,935.22,2.6562837]
[1768387711842,0.76305213,936.48,935.22,2.6562837]
[1768387712038,0.76305213,936.47,935.22,2.6562837]
[1768387712241,0.76305213,936.46,935.22,2.6562837]
[1768387712440,0.76305213,936.45,935.22,2.6562837]
[1768387712741,0.76305213,936.44,935.22,2.6562837]
[1768387712937,0.76305213,936.43,935.22,2.6562837]
[1768387713140,0.76305213,936.42,935.22,2.6562837]
[1768387713342,0.76305213,936.41,935.22,2.6562837]
[1768387713541,0.76305213,936.4,935.22,2.6562837]
[1768387713741,0.76305213,936.39,935.22,2.6562837]
[1768387714039,0.76253765,936.38,935.22,2.6562837]
[1768387714238,0.76253765,936.37,935.22,2.6562837]
[1768387714437,1.637,936.57,935.22,2.6562837]
[1768387714638,0.76256058,936.56,935.22,2.6562837]
[1768387714841,0.76256058,936.55,935.22,2.6562837]
[1768387715042,0.76256058,936.54,935.22,2.6562837]
[1768387715244,0.76256058,936.53,935.22,2.6562837]
[1768387715444,0.76256058,936.52,935.22,2.6562837]
[1768387715644,0.76256058,936.51,935.22,2.6562837]
[1768387715846,0.76256058,936.5,935.22,2.6562837]
[1768387716042,0.76256058,936.49,935.22,2.6562837]
[1768387716243,0.76256058,936.48,935.22,2.6562837]
[1768387716444,0.76256058,936.47,935.22,2.6562837]
[1768387716648,0.76256058,936.46,935.22,2.6562837]
[1768387716847,0.76256058,936.45,935.22,2.6562837]
[1768387717048,0.76256058,936.44,935.22,2.6562837]
[1768387717348,0.76256058,936.43,935.22,2.6562837]
[1768387717645,0.76256058,936.42,935.22,2.6562837]
[1768387717848,0.76256058,936.41,935.22,2.6562837]
[1768387718046,0.76256058,936.4,935.22,2.6562837]
[1768387718246,0.76256058,936.39,935.22,2.6562837]
[1768387718449,0.76256058,936.38,935.22,2.6562837]
[1768387718750,0.76256058,936.37,935.2,0.1857724]
[1768387718945,0.76256058,936.36,935.2,0.1857724]
[1768387719249,0.76256058,936.35,935.2,0.1857724]
[1768387719444,0.76256058,936.34,935.2,0.1857724]
[1768387719751,0.76256058,936.33,935.2,0.1857724]
[1768387720046,0.76256058,936.32,935.2,0.1857724]
[1768387720345,0.76256058,936.31,935.2,0.1857724]
[1768387720548,0.76256058,936.3,935.2,0.1857724]
[1768387720744,0.76256058,936.29,935.2,0.1857724]
[1768387721051,0.76256058,936.28,935.2,0.1857724]
[1768387721246,1.637,936.57,935.2,0.1857724]
[1768387721546,0.76209015,936.56,935.2,0.1857724]
[1768387721749,0.76209015,936.55,935.2,0.1857724]
[1768387721949,0.76209015,936.54,935.2,0.1857724]
[1768387722248,0.76209015,936.53,935.2,0.1857724]
[1768387722450,0.76209015,936.52,935.2,0.1857724]
[1768387722646,0.76209015,936.51,935.2,0.1857724]
[1768387722946,0.76209015,936.5,935.2,0.1857724]
[1768387723148,0.76209015,936.49,935.2,0.1857724]
[1768387723348,0.76209015,936.48,935.2,0.1857724]
[1768387723547,0.76209015,936.47,935.2,0.1857724]
[1768387723747,0.76209015,936.46,935.2,0.1857724]
[1768387723950,0.76209015,936.45,935.2,0.1857724]
[1768387724146,0.76209015,936.44,935.2,0.1857724]
[1768387724450,1.637,936.57,935.2,0.1857724]
[1768387724451,0.76209015,936.43,935.2,0.1857724]
[1768387724648,0.76209015,936.42,935.2,0.1857724]
[1768387724851,0.76209015,936.41,935.2,0.1857724]
[1768387725052,0.76209015,936.4,935.2,0.1857724]
[1768387725252,0.76209015,936.39,935.2,0.1857724]
[1768387725552,0.76209015,936.38,935.2,0.1857724]
[1768387725751,0.76209015,936.37,935.2,0.1857724]
[1768387725950,0.76209015,936.36,935.2,0.1857724]
[1768387726152,0.76209015,936.35,935.2,0.1857724]
[1768387726350,1.637,936.57,935.2,0.1857724]
[1768387726649,0.76188044,936.56,935.2,0.1857724]
[1768387726851,0.76188044,936.55,935.2,0.1857724]
[1768387727049,0.76188044,936.54,935.2,0.1857724]
[1768387727253,0.76188044,936.53,935.2,0.1857724]
[1768387727553,0.76188044,936.52,935.2,0.1857724]
[1768387727750,0.76188044,936.51,935.2,0.1857724]
[1768387728049,0.76188044,936.5,935.2,0.1857724]
[1768387728253,0.76188044,936.49,935.2,0.1857724]
[1768387728454,0.76188044,936.48,935.2,0.1857724]
[1768387728653,0.76188044,936.47,935.2,0.1857724]
[1768387728953,0.76188044,936.46,935.2,0.1857724]
[1768387729151,0.76188044,936.45,935.2,0.1857724]
[1768387729351,0.76188044,936.44,935.2,0.1857724]
[1768387729552,0.76188044,936.43,935.2,0.1857724]
[1768387729754,0.76188044,936.42,935.2,0.1857724]
[1768387729955,0.76188044,936.41,935.2,0.1857724]
[1768387730254,0.76188044,936.4,935.2,0.1857724]
[1768387730452,0.76188044,936.39,935.2,0.1857724]
[1768387730650,1.637,936.57,935.2,0.1857724]
[1768387730854,0.76188188,936.56,935.2,0.1857724]
[1768387731052,0.76188188,936.55,935.2,0.1857724]
[1768387731355,0.76188188,936.54,935.2,0.1857724]
[1768387731555,0.76188188,936.53,935.2,0.1857724]
[1768387731754,0.76188188,936.52,935.2,0.1857724]
[1768387731956,0.76188188,936.51,935.2,0.1857724]
[1768387732154,0.76188188,936.5,935.2,0.1857724]
[1768387732357,0.76188188,936.49,935.2,0.1857724]
[1768387732552,0.76188188,936.48,935.2,0.1857724]
[1768387732755,0.76188188,936.47,935.2,0.1857724]
[1768387732957,0.76188188,936.46,935.2,0.1857724]
[1768387733158,0.76188188,936.45,935.2,0.1857724]
[1768387733454,0.76188188,936.44,935.2,0.1857724]
[1768387733657,0.76188188,936.43,935.2,0.1857724]
[1768387733958,0.76188188,936.42,935.2,0.1857724]
[1768387734255,0.76188188,936.41,935.2,0.1857724]
[1768387734456,1.637,936.57,935.2,0.1857724]
[1768387734654,0.76188489,936.56,935.2,0.1857724]
[1768387734855,0.76188489,936.55,935.2,0.1857724]
[1768387735051,0.76188489,936.54,935.2,0.1857724]
[1768387735257,0.76188489,936.53,935.2,0.1857724]
[1768387735458,0.76188489,936.52,935.2,0.1857724]
[1768387735653,0.76188489,936.51,935.2,0.1857724]
[1768387735855,0.76188489,936.5,935.2,0.1857724]
[1768387736055,0.76188489,936.49,935.2,0.1857724]
[1768387736356,1.637,936.57,935.2,0.1857724]
[1768387736357,0.76188489,936.48,935.2,0.1857724]
[1768387736556,0.76188489,936.47,935.2,0.1857724]
[1768387736759,0.76188489,936.46,935.2,0.1857724]
[1768387736956,0.76188489,936.45,935.2,0.1857724]
[1768387737155,0.76188489,936.44,935.2,0.1857724]
[1768387737354,0.76188489,936.43,935.2,0.1857724]
[1768387737559,0.76188489,936.42,935.2,0.1857724]
[1768387737759,0.76188489,936.41,935.2,0.1857724]
[1768387737961,0.76188489,936.4,935.2,0.1857724]
[1768387738260,1.637,936.57,935.2,0.1857724]
[1768387738556,0.76191673,936.56,935.2,0.1857724]
[1768387738756,0.76191673,936.55,935.2,0.1857724]
[1768387739059,0.76191673,936.54,935.2,2.8420561]
[1768387739260,0.76191673,936.53,935.2,2.8420561]
[1768387739456,0.76191673,936.52,935.2,2.8420561]
[1768387739660,0.76191673,936.51,935.2,2.8420561]
[1768387739959,0.76191673,936.5,935.2,2.8420561]
[1768387740157,0.76191673,936.49,935.21,2.6562837]
[1768387740456,0.18581257,937.23,935.21,2.6562837]
[1768387740457,0.76191673,936.48,935.21,2.6562837]
[1768387740659,0.76191673,936.47,935.21,2.6562837]
[1768387740858,0.18581257,937.23,935.21,2.6562837]
[1768387740859,0.76191673,936.46,935.21,2.6562837]
[1768387741160,0.76191673,936.45,935.21,2.6562837]
[1768387741360,0.76191673,936.44,935.21,2.6562837]
[1768387741561,0.76191673,936.43,935.21,2.6562837]
[1768387741761,0.76191673,936.42,935.21,2.6562837]
[1768387741963,0.18581257,937.23,935.21,2.6562837]
[1768387742162,0.7616208,937.22,935.21,2.6562837]
[1768387742461,0.7616208,937.21,935.21,2.6562837]
[1768387742658,0.7616208,937.2,935.21,2.6562837]
[1768387742863,0.7616208,937.19,935.21,2.6562837]
[1768387743062,0.7616208,937.18,935.21,2.6562837]
[1768387743363,0.7616208,937.17,935.21,2.6562837]
[1768387743562,0.76160644,937.16,935.21,2.6562837]
[1768387743759,0.76160644,937.15,935.21,2.6562837]
[1768387743963,0.76160644,937.14,935.21,2.6562837]
[1768387744160,0.76160644,937.13,935.21,2.6562837]
[1768387744464,0.76160644,937.12,935.21,2.6562837]
[1768387744662,0.76160644,937.11,935.21,2.6562837]
[1768387744864,0.76160644,937.1,935.21,2.6562837]
[1768387745063,0.76160644,937.09,935.21,2.6562837]
[1768387745260,0.76160644,937.08,935.21,2.6562837]
[1768387745564,0.76160644,937.07,935.21,2.6562837]
[1768387745764,0.76160644,937.06,935.21,2.6562837]
[1768387745962,0.76160644,937.05,935.21,2.6562837]
[1768387746162,0.76160644,937.04,935.21,2.6562837]
[1768387746363,0.76160644,937.03,935.2,2.8420561]
[1768387746564,0.76160644,937.02,935.2,2.8420561]
[1768387746761,0.76160644,937.01,935.2,2.8420561]
[1768387746963,0.76160644,937.0,935.2,2.8420561]
[1768387747161,0.76160644,936.99,935.2,2.8420561]
[1768387747362,0.76160644,936.98,935.2,2.8420561]
[1768387747665,0.76160644,936.97,935.2,2.8420561]
[1768387747968,0.76160644,936.96,935.2,2.8420561]
[1768387748162,0.76160644,936.95,935.2,2.8420561]
[1768387748364,0.76160644,936.94,935.2,2.8420561]
[1768387748565,0.76160644,936.93,935.2,2.8420561]
[1768387748766,0.76160644,936.92,935.2,2.8420561]
[1768387748965,0.76160644,936.91,935.2,2.8420561]
[1768387749166,0.76160644,936.9,935.2,2.8420561]
[1768387749364,0.76160644,936.89,935.2,2.8420561]
[1768387749568,0.76160644,936.88,935.2,2.8420561]
[1768387749765,0.76160644,936.87,935.2,2.8420561]
[1768387749969,0.76160644,936.86,935.2,2.8420561]
[1768387750169,0.76160644,936.85,935.2,2.8420561]
[1768387750364,0.76160644,936.84,935.2,2.8420561]
[1768387750664,0.76160644,936.83,935.2,2.8420561]
[1768387750964,0.76160644,936.82,935.2,2.8420561]
[1768387751164,0.76160644,936.81,935.2,2.8420561]
[1768387751364,0.76160644,936.8,935.2,2.8420561]
[1768387751566,0.76160644,936.79,935.2,0.1857724]
[1768387751864,0.993,937.16,935.2,0.1857724]
[1768387752065,0.76154072,937.15,935.2,0.1857724]
[1768387752369,0.76154072,937.14,935.2,0.1857724]
[1768387752563,0.993,937.16,935.2,0.1857724]
[1768387753974,0.76152414,937.15,935.2,0.1857724]
[1768387754472,0.76152414,937.14,935.2,0.1857724]
[1768387754672,0.76152414,937.13,935.2,0.1857724]
[1768387754970,0.76152414,937.12,935.2,0.1857724]
[1768387755168,0.76152414,937.11,935.2,0.1857724]
[1768387755372,0.76152414,937.1,935.2,0.1857724]
[1768387755572,0.76152414,937.09,935.2,0.1857724]
[1768387755774,0.76152414,937.08,935.2,0.1857724]
[1768387756069,0.76152414,937.07,935.2,0.1857724]
[1768387756372,0.76152414,937.06,935.2,0.1857724]
[1768387756573,0.76152414,937.05,935.2,0.1857724]
[1768387756771,0.76152414,937.04,935.2,0.1857724]
[1768387756973,0.76152414,937.03,935.2,0.1857724]
[1768387757169,0.76152414,937.02,935.2,0.1857724]
[1768387757373,0.76152414,937.01,935.2,0.1857724]
[1768387757674,0.76152414,937.0,935.2,0.1857724]
[1768387757874,0.76152414,936.99,935.2,0.1857724]
[1768387758071,0.76152414,936.98,935.2,0.1857724]
[1768387758269,0.76152414,936.97,935.2,0.1857724]
[1768387758471,0.76152414,936.96,935.2,0.1857724]
[1768387758673,0.76152414,936.95,935.2,0.1857724]
[1768387758871,0.76152414,936.94,935.2,0.1857724]
[1768387759076,0.76152414,936.93,935.2,0.1857724]
[1768387759375,0.76152414,936.92,935.2,0.1857724]
[1768387759573,0.76152414,936.91,935.2,0.1857724]
[1768387759772,0.76152414,936.9,935.2,0.1857724]
[1768387759977,0.76152414,936.89,935.2,0.1857724]
[1768387760275,0.993,937.16,935.2,0.1857724]
[1768387760276,0.76152414,936.88,935.2,0.1857724]
[1768387760471,0.76152414,936.87,935.2,0.1857724]
[1768387760676,0.76152414,936.86,935.2,0.1857724]
[1768387760872,0.76152414,936.85,935.2,0.1857724]
[1768387761074,0.76152414,936.84,935.2,0.1857724]
[1768387761374,0.76152414,936.83,935.2,0.1857724]
[1768387761577,0.76152414,936.82,935.2,0.1857724]
[1768387761772,0.76152414,936.81,935.2,0.1857724]
[1768387762077,0.76152414,936.8,935.2,0.1857724]
[1768387762274,0.76152414,936.79,935.2,0.1857724]
[1768387762476,0.76152414,936.78,935.2,0.1857724]
[1768387762678,0.76152414,936.77,935.2,0.1857724]
[1768387762875,0.76152414,936.76,935.2,0.1857724]
[1768387763073,0.76152414,936.75,935.2,0.1857724]
[1768387763377,0.76152414,936.74,935.2,0.1857724]
[1768387763572,0.76152414,936.73,935.2,0.1857724]
[1768387763778,0.76152414,936.72,935.2,0.1857724]
[1768387763975,0.76152414,936.71,935.2,0.1857724]
[1768387764273,0.76152414,936.7,935.2,0.1857724]
[1768387764574,0.76152414,936.69,935.2,0.1857724]
[1768387764776,0.76152414,936.68,935.2,0.1857724]
[1768387764972,0.76152414,936.67,935.2,0.1857724]
[1768387765177,0.76152414,936.66,935.2,0.1857724]
[1768387765374,0.76152414,936.65,935.2,0.1857724]
[1768387765574,0.76152414,936.64,935.2,0.1857724]
[1768387765779,0.76152414,936.63,935.2,0.1857724]
[1768387765977,0.76152414,936.62,935.2,0.1857724]
[1768387766277,0.76152414,936.61,935.2,0.1857724]
[1768387766473,0.76152414,936.6,935.2,0.1857724]
[1768387766676,0.76152414,936.59,935.2,0.1857724]
[1768387766878,0.76152414,936.58,935.2,0.1857724]
[1768387767080,0.76152414,936.57,935.2,0.1857724]
[1768387767375,0.76152414,936.56,935.2,0.1857724]
[1768387767579,0.76152414,936.55,935.2,0.1857724]
[1768387767780,0.76152414,936.54,935.2,0.1857724]
[1768387768078,0.76152414,936.53,935.2,0.1857724]
[1768387768278,0.76152414,936.52,935.12,2.6562837]
[1768387768479,0.76152414,936.51,935.33,0.18583241]
[1768387768677,0.76152414,936.5,935.33,0.18583241]
[1768387768878,0.76152414,936.49,935.33,0.18583241]
[1768387769079,0.76152414,936.48,935.33,0.18583241]
[1768387769375,0.76152414,936.47,935.33,0.18583241]
[1768387769573,0.76152414,936.46,935.33,0.18583241]
[1768387769775,0.76152414,936.45,935.33,0.18583241]
[1768387769976,0.76152414,936.44,935.33,0.18583241]
[1768387770176,0.76152414,936.43,935.33,0.18583241]
[1768387770376,0.993,937.16,935.33,0.18583241]
[1768387770377,0.76152414,936.42,935.33,0.18583241]
[1768387770576,0.76152414,936.41,935.33,0.18583241]
[1768387770776,0.76152414,936.4,935.33,0.18583241]
[1768387770977,0.76152414,936.39,935.33,0.18583241]
[1768387771185,0.76152414,936.38,935.33,0.18583241]
[1768387771383,0.76152414,936.37,935.33,0.18583241]
[1768387771585,0.76152414,936.36,935.33,0.18583241]
[1768387771786,0.76152414,936.35,935.33,0.18583241]
[1768387772083,0.76152414,936.34,935.33,0.18583241]
[1768387772282,0.76152414,936.33,935.33,0.18583241]
[1768387772484,0.76152414,936.32,935.33,0.18583241]
[1768387772684,0.993,937.16,935.33,0.18583241]
[1768387772885,0.76174956,937.15,935.33,0.18583241]
[1768387773089,0.76174956,937.14,935.33,0.18583241]
[1768387773286,0.76174956,937.13,935.33,0.18583241]
[1768387773486,0.76174956,937.12,935.33,0.18583241]
[1768387773790,0.76174956,937.11,935.33,0.18583241]
[1768387773990,0.76174956,937.1,935.33,0.18583241]
[1768387774286,0.76174956,937.09,935.33,0.18583241]
[1768387774490,0.76174956,937.08,935.33,0.18583241]
[1768387774786,0.76174956,937.07,935.33,0.18583241]
[1768387774989,0.76174956,937.06,935.33,0.18583241]
[1768387775186,0.76174956,937.05,935.33,0.18583241]
[1768387775386,0.76174956,937.04,935.33,0.18583241]
[1768387775590,0.76174956,937.03,935.33,0.18583241]
[1768387775789,0.76174956,937.02,935.33,0.18583241]
[1768387775986,0.76174956,937.01,935.33,0.18583241]
[1768387776191,0.76174956,937.0,935.33,0.18583241]
[1768387776388,0.76174956,936.99,935.33,0.18583241]
[1768387776591,0.76174956,936.98,935.33,0.18583241]
[1768387776791,0.76174956,936.97,935.33,0.18583241]
[1768387776987,0.76174956,936.96,935.33,0.18583241]
[1768387777187,0.76174956,936.95,935.33,0.18583241]
[1768387777492,0.76174956,936.94,935.33,0.18583241]
[1768387777692,0.76174956,936.93,935.33,0.18583241]
[1768387777890,0.76174956,936.92,935.33,0.18583241]
[1768387778089,0.76174956,936.91,935.33,0.18583241]
[1768387778292,0.76174956,936.9,935.33,0.18583241]
[1768387778493,0.76174956,936.89,935.33,0.18583241]
[1768387778692,0.76174956,936.88,935.33,0.18583241]
[1768387778891,0.76174956,936.87,935.33,0.18583241]
[1768387779091,0.76174956,936.86,935.33,0.18583241]
[1768387779293,0.76174956,936.85,935.33,0.18583241]
[1768387779591,0.76174956,936.84,935.33,0.18583241]
[1768387779892,0.76174956,936.83,935.33,0.18583241]
[1768387780090,0.76174956,936.82,935.33,0.18583241]
[1768387780293,0.76174956,936.81,935.33,0.18583241]
[1768387780492,0.76174956,936.8,935.33,0.18583241]
[1768387780693,0.76174956,936.79,935.33,0.18583241]
[1768387780889,0.76174956,936.78,935.33,0.18583241]
[1768387781091,0.76174956,936.77,935.33,0.18583241]
[1768387781404,0.76174956,936.76,935.33,0.18583241]
[1768387781592,0.76174956,936.75,935.33,0.18583241]
[1768387781895,0.76174956,936.74,935.33,0.18583241]
[1768387782095,0.76174956,936.73,935.33,0.18583241]
[1768387782296,0.76174956,936.72,935.33,0.18583241]
[1768387782494,0.76174956,936.71,935.33,0.18583241]
[1768387782697,0.76174956,936.7,935.33,0.18583241]
[1768387782895,0.76174956,936.69,935.33,0.18583241]
[1768387783094,0.76174956,936.68,935.33,0.18583241]
[1768387783292,0.76174956,936.67,935.33,0.18583241]
[1768387783497,0.76174956,936.66,935.33,0.18583241]
[1768387783693,0.76174956,936.65,935.33,0.18583241]
[1768387783997,0.76174956,936.64,935.33,0.18583241]
[1768387784298,0.76174956,936.63,935.33,0.18583241]
[1768387784498,0.76174956,936.62,935.33,0.18583241]
[1768387784699,0.76174956,936.61,935.33,0.18583241]
[1768387784899,0.76174956,936.6,935.33,0.18583241]
[1768387785099,0.76174956,936.59,935.33,0.18583241]
[1768387785301,0.76174956,936.58,935.33,0.18583241]
[1768387785598,0.76174956,936.57,935.33,0.18583241]
[1768387785798,0.76174956,936.56,935.33,0.18583241]
[1768387785999,0.76174956,936.55,935.33,0.18583241]
[1768387786195,0.76174956,936.54,935.33,0.18583241]
[1768387786399,0.76174956,936.53,935.33,0.18583241]
[1768387786598,0.76174956,936.52,935.33,0.18583241]
[1768387786796,0.76174956,936.51,935.33,0.18583241]